bitfinex/quotes_BTCUSD_20220405
["timestamp","ask_amount","ask_price","bid_price","bid_amount"]
[1649187640974,0.054433,45932.0,45928.0,0.00052462]
[1649187641507,0.27234137,45930.0,45928.0,0.00052462]
[1649187641656,0.38123337,45930.0,45928.0,0.00052462]
[1649187641756,0.43123337,45930.0,45928.0,0.00052462]
[1649187641957,0.43123337,45930.0,45922.0,0.01089]
[1649187642056,0.43123337,45930.0,45921.0,0.01089]
[1649187642158,0.43123337,45930.0,45927.0,0.00052463]
[1649187642255,0.43004773,45930.0,45927.0,0.00052463]
[1649187642757,0.48449365,45930.0,45927.0,0.00052463]
[1649187643208,0.48449365,45930.0,45923.0,0.01089]
[1649187643308,0.48449365,45930.0,45921.0,0.01089]
[1649187643460,0.48449365,45930.0,45926.0,0.00052463]
[1649187644161,0.21215228,45930.0,45926.0,0.00052463]
[1649187644365,0.21215228,45930.0,45923.0,0.3076417]
[1649187644562,0.21215228,45930.0,45926.0,0.00026966]
[1649187644906,0.05,45930.0,45926.0,0.00026966]
[1649187645006,0.054445,45931.0,45926.0,0.00026966]
[1649187645608,0.054445,45931.0,45923.0,0.3076417]
[1649187645859,0.054445,45931.0,45926.0,0.00050603]
[1649187646661,0.00289543,45929.0,45926.0,0.00050603]
[1649187646761,0.00289543,45929.0,45921.0,0.01089]
[1649187646862,0.054441,45927.0,45921.0,0.01089]
[1649187646963,0.054441,45927.0,45926.0,0.00050603]
[1649187647464,0.00289543,45929.0,45926.0,0.00050603]
[1649187647966,0.00289543,45929.0,45924.0,0.31089]
[1649187648165,0.00289543,45929.0,45925.0,0.00050727]
[1649187648567,0.00289543,45929.0,45927.0,0.25710717]
[1649187649020,0.00289543,45929.0,45926.0,0.01089]
[1649187649222,0.00289543,45929.0,45925.0,0.01089]
[1649187649322,0.00289543,45929.0,45924.0,0.01089]
[1649187649422,0.00289543,45929.0,45926.0,0.00050727]
[1649187650379,0.00289543,45929.0,45919.0,0.01089]
[1649187650579,0.00289543,45929.0,45925.0,0.00050727]
[1649187650678,0.00289543,45929.0,45926.0,0.01089]
[1649187650982,0.11178443,45929.0,45926.0,0.01089]
[1649187651333,0.054445,45927.0,45926.0,0.01089]
[1649187651683,0.054445,45927.0,45923.0,0.01089]
[1649187651783,0.054445,45927.0,45924.0,0.00050728]
[1649187651883,0.054445,45927.0,45925.0,0.01089]
[1649187652854,0.054445,45927.0,45921.0,0.01089]
[1649187652956,0.054445,45927.0,45924.0,0.00050718]
[1649187653056,0.054445,45927.0,45925.0,0.01089]
[1649187654108,0.054445,45927.0,45920.0,0.01089]
[1649187654208,0.054445,45927.0,45924.0,0.00050718]
[1649187654309,0.054445,45927.0,45925.0,0.01089]
[1649187655266,0.00144702,45926.0,45924.0,0.01089]
[1649187655362,0.05089202,45927.0,45924.0,0.01139718]
[1649187656308,0.05089202,45927.0,45924.0,0.31139718]
[1649187656414,0.05089202,45927.0,45925.0,0.24421464]
[1649187656512,0.00144798,45928.0,45925.0,0.24421464]
[1649187656611,0.00144798,45928.0,45926.0,0.01089]
[1649187659163,0.00140335,45927.0,45926.0,0.01089]
[1649187660102,0.00140335,45927.0,45919.0,0.01089]
[1649187660206,0.00140335,45927.0,45924.0,0.00050718]
[1649187660302,0.05585135,45927.0,45925.0,0.01089]
[1649187661257,0.05585135,45927.0,45922.0,0.01089]
[1649187661356,0.05585135,45927.0,45924.0,0.0005068]
[1649187661456,0.05585135,45927.0,45925.0,0.01089]
[1649187662457,0.05585135,45927.0,45922.0,0.01089]
[1649187662559,0.05585135,45927.0,45924.0,0.0005068]
[1649187663663,0.05585135,45927.0,45918.0,0.01089]
[1649187663764,0.05585135,45927.0,45923.0,0.00050682]
[1649187664767,0.05585135,45927.0,45918.0,0.01089]
[1649187664969,0.05585135,45927.0,45923.0,0.0005072]
[1649187666020,0.05585135,45927.0,45921.0,0.01089]
[1649187666220,0.05585135,45927.0,45923.0,0.0005072]
[1649187667272,0.05585135,45927.0,45921.0,0.18865081]
[1649187667402,0.05585135,45927.0,45923.0,0.00050719]
[1649187667806,0.05443977,45934.0,45931.0,0.31141803]
[1649187667906,0.16383202,45938.0,45932.0,0.3]
[1649187668011,0.16383202,45938.0,45932.0,0.31089]
[1649187668012,0.00050702,45938.0,45932.0,0.31089]
[1649187668109,0.00050702,45938.0,45933.0,0.3464404]
[1649187668207,0.00050702,45938.0,45934.0,0.01089]
[1649187668305,0.00050702,45938.0,45937.0,0.321675]
[1649187668411,0.00050702,45938.0,45937.0,0.6435623]
[1649187668505,0.0011,45942.0,45937.0,1.53056331]
[1649187668605,0.0011,45942.0,45938.0,0.01240105]
[1649187668708,0.0011,45942.0,45940.0,0.6648]
[1649187668709,0.52744578,45941.0,45940.0,0.6648]
[1649187668806,0.52744578,45941.0,45938.0,0.19027358]
[1649187668906,0.3,45940.0,45938.0,0.00152105]
[1649187669109,0.29290901,45941.0,45938.0,0.00152105]
[1649187669305,0.0011,45942.0,45938.0,0.00152105]
[1649187669405,0.054424,45940.0,45938.0,0.00152105]
[1649187669909,0.00133677,45942.0,45939.0,0.34125689]
[1649187670057,0.00133677,45942.0,45941.0,0.29075949]
[1649187670156,0.00133677,45942.0,45941.0,0.2820576]
[1649187670859,0.00133677,45942.0,45939.0,0.01088]
[1649187670863,0.0011,45942.0,45939.0,0.01088]
[1649187670958,0.0011,45942.0,45938.0,0.00152105]
[1649187671626,0.30333711,45940.0,45938.0,0.00152105]
[1649187672027,0.0011,45942.0,45938.0,0.00152105]
[1649187672277,0.00050747,45941.0,45938.0,0.00152105]
[1649187672680,0.054434,45940.0,45938.0,0.00152105]
[1649187673678,0.3,45939.0,45938.0,0.00152105]
[1649187674627,0.57600747,45939.0,45938.0,0.00152105]
[1649187675718,0.27600747,45939.0,45938.0,0.00152105]
[1649187675920,0.00050745,45941.0,45938.0,0.00152105]
[1649187676115,0.00050745,45941.0,45939.0,0.321675]
[1649187676215,0.00050745,45941.0,45938.0,0.00152105]
[1649187676315,0.00050745,45941.0,45939.0,0.01088]
[1649187676821,0.0011,45942.0,45940.0,0.23773454]
[1649187677018,0.0011,45942.0,45941.0,0.01088]
[1649187677122,0.00160744,45942.0,45941.0,0.01088]
[1649187677518,0.00160744,45942.0,45941.0,0.332555]
[1649187677619,0.00160744,45942.0,45941.0,0.34356242]
[1649187677922,0.00160744,45942.0,45941.0,0.52143495]
[1649187678022,0.0011,45942.0,45941.0,0.52143495]
[1649187678663,0.0011,45942.0,45941.0,0.34356242]
[1649187678915,0.0011,45942.0,45941.0,0.39796942]
[1649187679315,0.0011,45942.0,45941.0,0.386962]
[1649187679416,0.0011,45942.0,45941.0,0.10659668]
[1649187679517,0.0011,45942.0,45941.0,0.09571668]
[1649187679615,0.0011,45942.0,45938.0,0.00152105]
[1649187680416,0.26041134,45939.0,45938.0,0.00152105]
[1649187681717,0.108864,45940.0,45938.0,0.00152105]
[1649187681921,0.00050746,45941.0,45938.0,0.00152105]
[1649187682858,0.0011,45942.0,45938.0,0.00152105]
[1649187682959,0.23320138,45942.0,45938.0,0.00152105]
[1649187683159,0.00160745,45942.0,45938.0,0.00152105]
[1649187683659,0.30160745,45942.0,45938.0,0.00152105]
[1649187683759,0.35160745,45942.0,45938.0,0.00152105]
[1649187683859,0.40160745,45942.0,45938.0,0.00152105]
[1649187683960,0.0435,45941.0,45938.0,0.00152105]
[1649187684358,0.2192513,45940.0,45938.0,0.00152105]
[1649187684459,0.3,45939.0,45938.0,0.00152105]
[1649187685760,0.202374,45940.0,45938.0,0.00152105]
[1649187686162,0.252374,45940.0,45938.0,0.00152105]
[1649187686364,0.2655251,45939.0,45938.0,0.00152105]
[1649187691113,0.6155251,45939.0,45938.0,0.00152105]
[1649187691665,0.3155251,45939.0,45938.0,0.00152105]
[1649187694918,0.05,45939.0,45938.0,0.00152105]
[1649187695023,0.055536,45942.0,45938.0,0.00152105]
[1649187695024,0.00023635,45941.0,45938.0,0.00152105]
[1649187695219,0.00023635,45941.0,45938.0,0.00145727]
[1649187695320,0.00023635,45941.0,45939.0,0.321675]
[1649187695468,0.00023635,45941.0,45940.0,0.23722336]
[1649187695975,0.00023635,45941.0,45940.0,0.55889836]
[1649187696074,0.0011,45942.0,45940.0,0.55889836]
[1649187696173,0.0011,45942.0,45940.0,0.23722336]
[1649187696275,0.0011,45942.0,45941.0,0.321675]
[1649187696474,0.0011,45942.0,45941.0,0.332555]
[1649187697126,0.0011,45942.0,45941.0,0.33277257]
[1649187697474,0.008,45943.0,45942.0,0.00219999]
[1649187697574,0.008,45943.0,45942.0,0.53352874]
[1649187697776,0.008,45943.0,45942.0,0.33497256]
[1649187697874,0.2477,45961.0,45954.0,0.08222888]
[1649187697975,0.0051,45958.0,45954.0,0.08222888]
[1649187699175,0.16723121,45956.0,45954.0,0.08222888]
[1649187699427,0.27850217,45955.0,45954.0,0.08222888]
[1649187699527,0.0031,45955.0,45954.0,0.08222888]
[1649187700580,0.31028713,45955.0,45954.0,0.08222888]
[1649187700782,0.0031,45955.0,45954.0,0.08222888]
[1649187701823,0.28637666,45955.0,45954.0,0.08222888]
[1649187702626,0.63637666,45955.0,45954.0,0.08222888]
[1649187702825,0.68637666,45955.0,45954.0,0.08222888]
[1649187703027,0.74080366,45955.0,45954.0,0.08222888]
[1649187703125,1.708857,45954.0,45951.0,0.0005432]
[1649187703281,0.16328255,45951.0,45943.0,0.01088]
[1649187703378,0.054429,45949.0,45943.0,0.01088]
[1649187703582,0.31480459,45947.0,45943.0,0.01088]
[1649187703776,0.42365659,45947.0,45943.0,0.01088]
[1649187704026,0.24633353,45946.0,45943.0,0.01088]
[1649187704425,0.42365659,45947.0,45943.0,0.01088]
[1649187704676,0.47808217,45947.0,45943.0,0.01088]
[1649187705517,0.16327758,45947.0,45943.0,0.01088]
[1649187705617,0.108852,45947.0,45943.0,0.01088]
[1649187705720,0.05,45950.0,45943.0,0.01088]
[1649187705815,0.05,45950.0,45943.0,0.01142121]
[1649187706017,0.05,45951.0,45943.0,0.01142121]
[1649187706618,0.32287957,45951.0,45943.0,0.01142121]
[1649187706717,0.05,45951.0,45943.0,0.01142121]
[1649187706819,0.05,45951.0,45943.0,0.01088]
[1649187707019,0.05,45951.0,45945.0,0.0005412]
[1649187707619,0.33897992,45953.0,45945.0,0.0005412]
[1649187707823,0.28391952,45951.0,45945.0,0.0005412]
[1649187708020,0.05,45951.0,45942.0,0.00219999]
[1649187708220,0.05,45951.0,45947.0,0.00054119]
[1649187708421,0.33897992,45953.0,45947.0,0.00054119]
[1649187708671,0.05441,45952.0,45947.0,0.00054119]
[1649187709029,0.33270501,45952.0,45947.0,0.00054119]
[1649187709222,0.33270501,45952.0,45942.0,0.00219999]
[1649187709418,0.33270501,45952.0,45947.0,0.00054322]
[1649187709519,0.27829501,45952.0,45947.0,0.00054322]
[1649187709621,0.33897992,45953.0,45947.0,0.00054322]
[1649187709923,0.05441493,45951.0,45947.0,0.00054322]
[1649187710019,0.16325193,45951.0,45947.0,0.00054322]
[1649187710120,0.108837,45951.0,45947.0,0.00054322]
[1649187710222,0.158837,45951.0,45947.0,0.00054322]
[1649187710420,0.158837,45951.0,45943.0,0.01088]
[1649187710620,0.158837,45951.0,45947.0,0.00054322]
[1649187710821,0.2767586,45950.0,45947.0,0.00054322]
[1649187711621,0.2767586,45950.0,45942.0,0.00219999]
[1649187711721,0.38560241,45950.0,45942.0,0.00219999]
[1649187711822,0.38560241,45950.0,45946.0,0.00054323]
[1649187712815,0.38560241,45950.0,45942.0,0.00219999]
[1649187713015,0.38560241,45950.0,45946.0,0.0005219]
[1649187713768,0.3,45949.0,45946.0,0.0005219]
[1649187713965,0.35,45949.0,45946.0,0.0005219]
[1649187714066,0.35,45949.0,45942.0,0.00219999]
[1649187714271,0.35,45949.0,45945.0,0.0005219]
[1649187715270,0.35,45949.0,45942.0,0.00219999]
[1649187715518,0.35,45949.0,45945.0,0.00052191]
[1649187715620,0.05441961,45948.0,45945.0,0.00052191]
[1649187715719,0.10883761,45948.0,45945.0,0.00052191]
[1649187715819,0.054418,45948.0,45945.0,0.00052191]
[1649187716221,0.05,45949.0,45945.0,0.00052191]
[1649187716324,0.1,45951.0,45945.0,0.00052191]
[1649187716418,0.1,45951.0,45942.0,0.00219999]
[1649187716518,0.4,45952.0,45942.0,0.00219999]
[1649187716618,0.30877694,45948.0,45945.0,0.00050501]
[1649187716718,0.4,45952.0,45945.0,0.00050501]
[1649187717671,0.454411,45952.0,45942.0,0.00219999]
[1649187717820,0.21804824,45950.0,45946.0,0.00050501]
[1649187717919,0.31804824,45950.0,45946.0,0.00050501]
[1649187718721,0.05,45950.0,45946.0,0.00050501]
[1649187718827,0.05,45951.0,45943.0,0.01088]
[1649187719024,0.05,45951.0,45946.0,0.00050501]
[1649187719626,0.28300287,45950.0,45946.0,0.00050501]
[1649187720068,0.28300287,45950.0,45943.0,0.01088]
[1649187720269,0.28300287,45950.0,45946.0,0.00050615]
[1649187721218,0.28300287,45950.0,45943.0,0.01088]
[1649187721520,0.054416,45949.0,45943.0,0.01088]
[1649187721821,0.28300287,45950.0,45943.0,0.01088]
[1649187722121,0.33300287,45950.0,45943.0,0.01088]
[1649187722672,0.05,45950.0,45943.0,0.01088]
[1649187722773,0.1,45951.0,45943.0,0.01088]
[1649187722873,0.05,45951.0,45943.0,0.01088]
[1649187723073,0.05,45954.0,45943.0,0.01088]
[1649187723172,0.77433433,45955.0,45943.0,0.01088]
[1649187723375,0.72433433,45955.0,45943.0,0.01088]
[1649187723573,1.01095483,45955.0,45943.0,0.01088]
[1649187723723,0.2897205,45955.0,45943.0,0.01088]
[1649187723816,0.2897205,45955.0,45947.0,0.00054327]
[1649187723918,0.29026367,45955.0,45947.0,0.00054327]
[1649187724020,0.29026367,45955.0,45948.0,0.01088]
[1649187724817,0.2897205,45955.0,45948.0,0.01088]
[1649187724919,0.2897205,45955.0,45944.0,0.01088]
[1649187725068,0.05441026,45954.0,45949.0,0.00054325]
[1649187725172,0.05441026,45954.0,45950.0,0.01088]
[1649187725371,0.05441026,45954.0,45950.0,0.01079435]
[1649187726122,0.057507,45955.0,45950.0,0.01079435]
[1649187726222,0.0031,45955.0,45950.0,0.00054325]
[1649187726323,0.00364319,45955.0,45951.0,0.01088]
[1649187727223,0.0031,45955.0,45951.0,0.01088]
[1649187727323,0.0031,45955.0,45948.0,0.01088]
[1649187727445,0.0031,45955.0,45951.0,0.0005062]
[1649187727535,0.00360615,45955.0,45952.0,0.01088]
[1649187727835,0.0051,45957.0,45952.0,0.01088]
[1649187727934,0.056399,45959.0,45957.0,0.02541229]
[1649187728588,0.27924594,45958.0,45957.0,0.02541229]
[1649187731166,0.32924594,45958.0,45957.0,0.02541229]
[1649187733070,0.27924594,45958.0,45957.0,0.02541229]
[1649187733371,0.0051,45958.0,45957.0,0.02541229]
[1649187739879,0.0051,45958.0,45957.0,0.2805705]
[1649187739983,0.0051,45958.0,45957.0,0.5805705]
[1649187740130,0.0051,45958.0,45957.0,0.5914505]
[1649187740232,0.0051,45958.0,45957.0,0.60245433]
[1649187740330,0.0051,45958.0,45957.0,0.92412933]
[1649187740633,0.0051,45958.0,45957.0,0.60245433]
[1649187740731,0.0051,45958.0,45957.0,0.92412933]
[1649187740934,0.0051,45958.0,45957.0,0.60245433]
[1649187741033,0.0051,45958.0,45957.0,0.92412933]
[1649187741533,0.0051,45958.0,45957.0,0.91334299]
[1649187742978,0.0051,45958.0,45957.0,0.59166799]
[1649187744884,0.0051,45958.0,45957.0,0.91334299]
[1649187745187,0.0051,45958.0,45957.0,0.59166799]
[1649187745284,0.0051,45958.0,45957.0,0.91334299]
[1649187745584,0.0051,45958.0,45957.0,0.59166799]
[1649187745685,0.0051,45958.0,45957.0,0.91334299]
[1649187745985,0.0051,45958.0,45957.0,0.59166799]
[1649187746084,0.0051,45958.0,45957.0,0.91334299]
[1649187746378,0.0051,45958.0,45957.0,0.59166799]
[1649187746480,0.0051,45958.0,45957.0,0.91334299]
[1649187747939,0.002,45959.0,45958.0,1.6102]
[1649187748037,0.002,45959.0,45958.0,2.607555]
[1649187748137,0.002,45959.0,45958.0,2.71855871]
[1649187748585,0.002,45959.0,45958.0,1.11855871]
[1649187748688,0.002,45959.0,45958.0,1.41855871]
[1649187748789,0.002,45959.0,45958.0,1.407555]
[1649187748887,0.002,45959.0,45958.0,1.41855811]
[1649187748989,0.002,45959.0,45958.0,1.64075693]
[1649187749087,0.002,45959.0,45958.0,1.68425693]
[1649187749236,0.002,45959.0,45958.0,1.639599]
[1649187750032,0.002,45959.0,45958.0,1.46205811]
[1649187750132,0.002,45959.0,45958.0,1.639599]
[1649187750234,0.002,45959.0,45958.0,1.46205811]
[1649187750333,0.002,45959.0,45958.0,1.14038311]
[1649187750734,0.002,45959.0,45958.0,0.47558311]
[1649187750934,0.002,45959.0,45958.0,0.75375811]
[1649187751084,0.002,45959.0,45958.0,0.33208311]
[1649187751184,0.002,45959.0,45958.0,0.03208311]
[1649187751385,0.036394,45961.0,45958.0,0.03208311]
[1649187751485,0.036394,45961.0,45959.0,0.01088]
[1649187751586,0.03692574,45961.0,45959.0,0.01088]
[1649187751941,0.05440702,45960.0,45959.0,0.01088]
[1649187752038,0.03692574,45961.0,45959.0,0.332555]
[1649187752140,0.00053174,45961.0,45960.0,0.40668696]
[1649187752239,0.00053174,45961.0,45960.0,0.72836196]
[1649187752337,0.00053174,45961.0,45960.0,0.97501516]
[1649187752536,0.002,45962.0,45960.0,0.97501516]
[1649187752639,0.002,45962.0,45961.0,0.42836196]
[1649187752737,0.002,45962.0,45961.0,0.72836196]
[1649187752839,0.002,45962.0,45961.0,0.42836196]
[1649187754230,0.002,45962.0,45961.0,0.72836196]
[1649187756336,0.002,45962.0,45961.0,0.10668696]
[1649187756588,0.002,45962.0,45961.0,0.01100478]
[1649187757641,0.002,45962.0,45961.0,0.01092638]
[1649187757942,0.059496,45970.0,45967.0,0.10301208]
[1649187758045,0.0091,45968.0,45967.0,0.10301208]
[1649187759143,0.0091,45968.0,45967.0,0.42468708]
[1649187759345,0.0091,45968.0,45967.0,0.10301208]
[1649187759444,0.0091,45968.0,45967.0,0.42468708]
[1649187759643,0.0091,45968.0,45967.0,0.10301208]
[1649187759745,0.0091,45968.0,45967.0,0.42468708]
[1649187760148,0.0091,45968.0,45967.0,0.10301208]
[1649187760345,0.0091,45968.0,45967.0,0.40301208]
[1649187760445,0.0091,45968.0,45967.0,0.72468708]
[1649187760544,0.0091,45968.0,45967.0,0.10301208]
[1649187761489,0.0526,45968.0,45967.0,0.10301208]
[1649187761689,0.31793928,45968.0,45967.0,0.10301208]
[1649187761786,0.41793928,45968.0,45967.0,0.10301208]
[1649187764689,0.47233389,45968.0,45967.0,0.10301208]
[1649187765736,0.20699461,45968.0,45967.0,0.10301208]
[1649187766088,0.1526,45968.0,45967.0,0.10301208]
[1649187766841,0.45610439,45968.0,45967.0,0.10301208]
[1649187767391,0.1526,45968.0,45967.0,0.10301208]
[1649187767489,0.0526,45968.0,45967.0,0.10301208]
[1649187767791,0.0091,45968.0,45967.0,0.10301208]
[1649187774983,0.31743415,45968.0,45967.0,0.10301208]
[1649187775684,0.37183331,45968.0,45967.0,0.10301208]
[1649187776435,0.37183331,45968.0,45958.0,0.0102]
[1649187776537,0.054411,45965.0,45958.0,0.0102]
[1649187776889,0.0435,45964.0,45958.0,0.0102]
[1649187777036,0.152319,45964.0,45958.0,0.0102]
[1649187777337,0.43806056,45964.0,45958.0,0.0102]
[1649187777638,0.0979065,45964.0,45958.0,0.0102]
[1649187777738,0.0435,45964.0,45958.0,0.0102]
[1649187777841,0.0435,45964.0,45959.0,0.24825062]
[1649187778441,0.00050795,45966.0,45960.0,0.332555]
[1649187778544,0.00050795,45966.0,45961.0,0.3]
[1649187778643,0.00050795,45966.0,45965.0,0.31201599]
[1649187778943,0.0091,45968.0,45965.0,0.31201599]
[1649187779245,0.00960795,45968.0,45965.0,0.31201599]
[1649187779644,0.00960795,45968.0,45962.0,0.01088]
[1649187779842,0.00960795,45968.0,45960.0,0.01088]
[1649187779984,0.00960795,45968.0,45959.0,0.01088]
[1649187780082,0.0091,45968.0,45959.0,0.01088]
[1649187780434,0.00050797,45966.0,45959.0,0.01088]
[1649187780731,0.10929997,45966.0,45958.0,0.0102]
[1649187780832,0.054406,45963.0,45958.0,0.0102]
[1649187780931,0.108812,45963.0,45958.0,0.0102]
[1649187781437,0.054406,45963.0,45959.0,0.321675]
[1649187781590,0.108792,45966.0,45958.0,0.3102]
[1649187781591,0.00050795,45966.0,45958.0,0.3102]
[1649187781684,0.00050795,45966.0,45959.0,0.332555]
[1649187781784,0.00050795,45966.0,45960.0,0.321675]
[1649187781884,0.00050795,45966.0,45961.0,0.31088]
[1649187782085,0.00050795,45966.0,45959.0,0.01088]
[1649187782188,0.00050795,45966.0,45965.0,0.22258357]
[1649187782285,0.00050795,45966.0,45959.0,0.01088]
[1649187782490,0.0091,45968.0,45959.0,0.01088]
[1649187782636,0.0091,45968.0,45959.0,0.18842089]
[1649187782737,0.00050796,45966.0,45960.0,0.321675]
[1649187782835,0.00050796,45966.0,45961.0,0.31088]
[1649187782938,0.00050796,45966.0,45959.0,0.17754089]
[1649187782939,0.00050796,45966.0,45960.0,0.01088]
[1649187783137,0.00050796,45966.0,45959.0,0.01088]
[1649187783436,0.00050796,45966.0,45964.0,0.26657985]
[1649187783720,0.0091,45968.0,45964.0,0.26657985]
[1649187783921,0.00050796,45967.0,45959.0,0.01088]
[1649187784324,0.108792,45966.0,45959.0,0.01088]
[1649187784626,0.00050796,45967.0,45959.0,0.01088]
[1649187784725,0.0435,45966.0,45958.0,0.0102]
[1649187784927,0.097899,45966.0,45958.0,0.0102]
[1649187785226,0.09840696,45966.0,45958.0,0.0102]
[1649187785726,0.05440388,45964.0,45958.0,0.0102]
[1649187786229,0.054404,45963.0,45958.0,0.0102]
[1649187787946,0.39541477,45966.0,45965.0,0.3112474]
[1649187788549,0.39490682,45966.0,45965.0,0.3112474]
[1649187789204,0.097899,45966.0,45965.0,0.3112474]
[1649187790904,0.0435,45966.0,45965.0,0.3112474]
[1649187791054,0.0091,45968.0,45965.0,0.3112474]
[1649187791202,0.00960796,45968.0,45965.0,0.3112474]
[1649187792153,0.0091,45968.0,45965.0,0.3112474]
[1649187793304,0.0544,45967.0,45965.0,0.3112474]
[1649187793764,0.117894,45968.0,45965.0,0.3112474]
[1649187793858,0.0091,45968.0,45965.0,0.3112474]
[1649187796113,0.0091,45968.0,45967.0,0.01100766]
[1649187796313,0.0091,45968.0,45967.0,0.54380534]
[1649187796416,0.0091,45968.0,45967.0,0.31100766]
[1649187796562,0.0091,45968.0,45967.0,0.31100395]
[1649187796662,0.0091,45968.0,45967.0,0.3]
[1649187796763,0.0091,45968.0,45967.0,0.30521892]
[1649187796862,0.0091,45968.0,45967.0,0.3]
[1649187797167,0.0091,45968.0,45966.0,0.25119071]
[1649187797366,0.0091,45968.0,45966.0,0.40488783]
[1649187797464,0.0091,45968.0,45967.0,0.3]
[1649187797814,0.0091,45968.0,45967.0,0.31088]
[1649187798748,0.0091,45968.0,45967.0,0.01088]
[1649187798833,0.0091,45968.0,45966.0,0.01088]
[1649187799229,0.0091,45968.0,45967.0,0.01739717]
[1649187799430,0.0091,45968.0,45966.0,0.01088]
[1649187801679,0.0091,45968.0,45965.0,0.3112474]
[1649187801782,0.054404,45967.0,45965.0,0.3112474]
[1649187802081,0.10881695,45967.0,45965.0,0.3112474]
[1649187802333,0.05,45966.0,45965.0,0.3112474]
[1649187802656,0.0935,45966.0,45965.0,0.3112474]
[1649187802908,0.34647087,45966.0,45965.0,0.3112474]
[1649187804105,0.29647087,45966.0,45965.0,0.3112474]
[1649187805311,0.34647087,45966.0,45965.0,0.3112474]
[1649187805871,0.39647087,45966.0,45965.0,0.3112474]
[1649187806605,1.56444961,45966.0,45965.0,0.3112474]
[1649187808160,1.56630392,45966.0,45965.0,0.3112474]
[1649187809612,1.56630392,45966.0,45965.0,0.31114157]
[1649187814283,1.51630392,45966.0,45965.0,0.31114157]
[1649187816182,1.56630392,45966.0,45965.0,0.31114157]
[1649187817190,1.31333305,45966.0,45965.0,0.31114157]
[1649187817289,0.14535431,45966.0,45965.0,0.31114157]
[1649187817472,0.09535431,45966.0,45965.0,0.31114157]
[1649187817568,0.04535431,45966.0,45965.0,0.31114157]
[1649187817970,0.00959057,45968.0,45966.0,0.13420861]
[1649187818570,0.0091,45968.0,45966.0,0.13420861]
[1649187819271,0.0091,45968.0,45966.0,0.43420861]
[1649187819472,0.0091,45968.0,45967.0,0.3]
[1649187821076,0.0091,45968.0,45967.0,0.31088]
[1649187823461,0.0091,45968.0,45967.0,0.01088]
[1649187824567,0.0091,45968.0,45967.0,0.010191]
[1649187826335,0.0091,45968.0,45967.0,0.310191]
[1649187827792,0.0091,45968.0,45967.0,0.010191]
[1649187828895,0.0091,45968.0,45967.0,0.16705862]
[1649187828999,0.0091,45968.0,45967.0,0.010191]
[1649187834397,0.0091,45968.0,45967.0,0.310191]
[1649187839300,0.0091,45968.0,45967.0,0.32119375]
[1649187840495,0.0091,45968.0,45967.0,0.310191]
[1649187840599,0.0091,45968.0,45967.0,0.31273522]
[1649187840696,0.0091,45968.0,45967.0,0.01273522]
[1649187841851,0.0091,45968.0,45967.0,0.00254422]
[1649187841852,0.06350308,45968.0,45967.0,0.00254422]
[1649187842149,0.10700308,45968.0,45966.0,0.13420861]
[1649187842748,0.23662847,45967.0,45966.0,0.13420861]
[1649187842850,0.26966261,45967.0,45966.0,0.13420861]
[1649187842952,0.31316261,45967.0,45966.0,0.13420861]
[1649187844097,0.36316261,45967.0,45966.0,0.13420861]
[1649187846501,0.36316261,45967.0,45966.0,0.13410038]
[1649187849899,0.35816261,45967.0,45966.0,0.13410038]
[1649187851051,0.12153414,45967.0,45966.0,0.13410038]
[1649187851315,0.0885,45967.0,45966.0,0.13410038]
[1649187851514,0.0435,45967.0,45966.0,0.13410038]
[1649187851607,0.0935,45967.0,45966.0,0.13410038]
[1649187851711,0.0435,45967.0,45966.0,0.13410038]
[1649187853867,0.0591,45968.0,45966.0,0.13410038]
[1649187854070,0.0091,45968.0,45966.0,0.13410038]
[1649187854167,0.0591,45968.0,45966.0,0.13410038]
[1649187854567,0.063495,45968.0,45966.0,0.13410038]
[1649187854668,0.113495,45968.0,45966.0,0.13410038]
[1649187854954,0.113495,45968.0,45966.0,0.13083433]
[1649187856154,0.0435,45967.0,45966.0,0.13083433]
[1649187864596,0.152327,45967.0,45966.0,0.13083433]
[1649187864697,0.152327,45967.0,45965.0,0.31114157]
[1649187864698,1.6,45966.0,45965.0,0.31114157]
[1649187864796,1.7,45966.0,45965.0,0.31114157]
[1649187865000,1.7435,45966.0,45965.0,0.31114157]
[1649187865200,1.8435,45966.0,45965.0,0.31114157]
[1649187865499,2.12265134,45966.0,45965.0,0.31114157]
[1649187865849,0.52265134,45966.0,45965.0,0.31114157]
[1649187865949,0.57706234,45966.0,45965.0,0.31114157]
[1649187866054,0.52265134,45966.0,45965.0,0.31114157]
[1649187866498,0.2435,45966.0,45965.0,0.31114157]
[1649187866749,0.1435,45966.0,45965.0,0.31114157]
[1649187868302,0.00957527,45968.0,45965.0,0.31114157]
[1649187868802,0.0051,45970.0,45969.0,0.03335053]
[1649187871058,0.0551,45970.0,45969.0,0.03335053]
[1649187871810,0.20481543,45970.0,45969.0,0.03335053]
[1649187873844,0.20481543,45970.0,45969.0,0.01633967]
[1649187875753,0.0551,45970.0,45969.0,0.01633967]
[1649187876752,0.20478455,45970.0,45969.0,0.01633967]
[1649187878703,0.0551,45970.0,45969.0,0.01633967]
[1649187878802,0.0051,45970.0,45969.0,0.01633967]
[1649187879004,0.0551,45970.0,45969.0,0.01633967]
[1649187879106,0.0051,45970.0,45969.0,0.01633967]
[1649187882816,0.0049841,45970.0,45969.0,0.01633967]
[1649187883619,0.0549841,45970.0,45969.0,0.01633967]
[1649187884019,1.6,45969.0,45965.0,0.31114157]
[1649187884223,0.0435,45968.0,45965.0,0.31114157]
[1649187884319,0.24269219,45966.0,45965.0,0.31114157]
[1649187884419,0.33014026,45966.0,45965.0,0.31114157]
[1649187884521,0.38014026,45966.0,45965.0,0.31114157]
[1649187884624,1.35,45965.0,45958.0,0.01088]
[1649187884719,1.35,45965.0,45956.0,0.01088]
[1649187884818,1.458832,45965.0,45954.0,0.01088]
[1649187884952,1.458832,45965.0,45963.0,0.00054453]
[1649187885303,0.24322561,45964.0,45963.0,0.00054453]
[1649187885704,0.46088861,45964.0,45963.0,0.00054453]
[1649187885904,0.49996776,45964.0,45955.0,0.01088]
[1649187886004,0.054413,45963.0,45955.0,0.01088]
[1649187886105,0.10882,45961.0,45956.0,0.01088]
[1649187886204,0.10882,45961.0,45953.0,0.01088]
[1649187886604,0.054413,45963.0,45953.0,0.31088]